[Event "Live Chess"]
[Site "Chess.com"]
[Date "2023.05.20"]
[Round "-"]
[White "wadsy27"]
[Black "howitzer14"]
[Result "1-0"]
[WhiteElo "2554"]
[BlackElo "2890"]
[TimeControl "300"]
[EndTime "13:56:26 PDT"]
[Termination "wadsy27 won on time"]

1. c4 {[%clk 0:04:57.8]} 1... b6 {[%clk 0:04:56.4]} 2. g3 {[%clk 0:04:54.8]}
2... Bb7 {[%clk 0:04:55.2]} 3. Nf3 {[%clk 0:04:54.4]} 3... Bxf3 {[%clk
0:04:52.7]} 4. exf3 {[%clk 0:04:54.3]} 4... c5 {[%clk 0:04:52.3]} 5. d4 {[%clk
0:04:53.1]} 5... Nc6 {[%clk 0:04:52.2]} 6. d5 {[%clk 0:04:50.6]} 6... Nd4 {[%clk
0:04:51.3]} 7. Be3 {[%clk 0:04:44.9]} 7... Nf5 {[%clk 0:04:49.3]} 8. Bd2 {[%clk
0:04:35.3]} 8... g6 {[%clk 0:04:48.1]} 9. Bc3 {[%clk 0:04:33.2]} 9... Bg7 {[%clk
0:04:47.3]} 10. Bxg7 {[%clk 0:04:28.7]} 10... Nxg7 {[%clk 0:04:47.2]} 11. Bd3
{[%clk 0:04:26.2]} 11... Nh6 {[%clk 0:04:39.5]} 12. Nc3 {[%clk 0:04:10.5]} 12...
Nhf5 {[%clk 0:04:33.7]} 13. Ne2 {[%clk 0:04:07.4]} 13... e6 {[%clk 0:04:22.3]}
14. Qc2 {[%clk 0:04:00.5]} 14... Qf6 {[%clk 0:04:15.9]} 15. O-O-O {[%clk
0:03:53.3]} 15... g5 {[%clk 0:03:47.8]} 16. f4 {[%clk 0:03:34.7]} 16... h6
{[%clk 0:03:31.9]} 17. fxg5 {[%clk 0:03:07.2]} 17... hxg5 {[%clk 0:03:31.8]} 18.
Be4 {[%clk 0:02:55]} 18... Rd8 {[%clk 0:03:20]} 19. Kb1 {[%clk 0:02:46.3]} 19...
Nd6 {[%clk 0:03:10.4]} 20. f4 {[%clk 0:02:42.8]} 20... Ngf5 {[%clk 0:02:48.1]}
21. Bxf5 {[%clk 0:02:28.6]} 21... Nxf5 {[%clk 0:02:32.9]} 22. fxg5 {[%clk
0:02:23.7]} 22... Qxg5 {[%clk 0:02:31.7]} 23. dxe6 {[%clk 0:02:20.9]} 23... fxe6
{[%clk 0:02:28.5]} 24. Qe4 {[%clk 0:02:13.5]} 24... Ne7 {[%clk 0:02:13.4]} 25.
h4 {[%clk 0:01:57.2]} 25... Qf5 {[%clk 0:02:07.5]} 26. Nc3 {[%clk 0:01:46.9]}
26... Qxe4+ {[%clk 0:02:01.4]} 27. Nxe4 {[%clk 0:01:45.2]} 27... Nf5 {[%clk
0:02:01.3]} 28. h5 {[%clk 0:01:39.2]} 28... Ke7 {[%clk 0:01:54.7]} 29. g4 {[%clk
0:01:31]} 29... Ne3 {[%clk 0:01:53.5]} 30. Rdg1 {[%clk 0:01:29.4]} 30... Nxc4
{[%clk 0:01:46.3]} 31. g5 {[%clk 0:01:26.4]} 31... d5 {[%clk 0:01:40.4]} 32. g6
{[%clk 0:01:01.2]} 32... Rh6 {[%clk 0:00:56.8]} 33. Ng5 {[%clk 0:00:58]} 33...
Nd6 {[%clk 0:00:48.8]} 34. Re1 {[%clk 0:00:56.7]} 34... Ne4 {[%clk 0:00:37.5]}
35. Nxe4 {[%clk 0:00:54.1]} 35... dxe4 {[%clk 0:00:36.6]} 36. Rxe4 {[%clk
0:00:52.2]} 36... Rdh8 {[%clk 0:00:35.9]} 37. Re5 {[%clk 0:00:42.5]} 37... Kf6
{[%clk 0:00:28.8]} 38. Rhe1 {[%clk 0:00:41.2]} 38... Rxh5 {[%clk 0:00:26.4]} 39.
Rxe6+ {[%clk 0:00:40]} 39... Kg7 {[%clk 0:00:25.5]} 40. Re7+ {[%clk 0:00:38]}
40... Kxg6 {[%clk 0:00:24.8]} 41. Rxa7 {[%clk 0:00:37.1]} 41... Rf8 {[%clk
0:00:19.2]} 42. Re6+ {[%clk 0:00:31.7]} 42... Rf6 {[%clk 0:00:18.6]} 43. Rxf6+
{[%clk 0:00:30.5]} 43... Kxf6 {[%clk 0:00:18.5]} 44. Rb7 {[%clk 0:00:29.9]}
44... Ke5 {[%clk 0:00:17.9]} 45. Rxb6 {[%clk 0:00:28.8]} 45... Kd5 {[%clk
0:00:17.8]} 46. Rb8 {[%clk 0:00:26.4]} 46... Kc4 {[%clk 0:00:16.1]} 47. a3
{[%clk 0:00:23.6]} 47... Rh1+ {[%clk 0:00:14.6]} 48. Ka2 {[%clk 0:00:23]} 48...
Rh7 {[%clk 0:00:14.5]} 49. Rg8 {[%clk 0:00:22.1]} 49... Ra7 {[%clk 0:00:14]} 50.
Rg4+ {[%clk 0:00:21.6]} 50... Kb5 {[%clk 0:00:13.9]} 51. Kb3 {[%clk 0:00:20.4]}
51... Ra8 {[%clk 0:00:13.2]} 52. a4+ {[%clk 0:00:19.7]} 52... Ka5 {[%clk
0:00:11.8]} 53. Kc4 {[%clk 0:00:18.8]} 53... Kxa4 {[%clk 0:00:10.2]} 54. Rg1
{[%clk 0:00:17.8]} 1-0

[Event "Live Chess"]
[Site "Chess.com"]
[Date "2023.05.20"]
[Round "-"]
[White "OSmith06"]
[Black "AbilifyXL"]
[Result "0-1"]
[WhiteElo "1647"]
[BlackElo "1953"]
[TimeControl "300"]
[EndTime "13:56:31 PDT"]
[Termination "AbilifyXL won by resignation"]

1. e4 {[%clk 0:04:57.6]} 1... d5 {[%clk 0:04:59.9]} 2. exd5 {[%clk 0:04:56.6]}
2... Qxd5 {[%clk 0:04:59.4]} 3. Nf3 {[%clk 0:04:56.5]} 3... c6 {[%clk
0:04:58.4]} 4. c4 {[%clk 0:04:54]} 4... Qa5 {[%clk 0:04:57]} 5. Nc3 {[%clk
0:04:52.3]} 5... Nf6 {[%clk 0:04:56.5]} 6. d4 {[%clk 0:04:51.5]} 6... Bg4 {[%clk
0:04:55.9]} 7. Bd2 {[%clk 0:04:49.9]} 7... e6 {[%clk 0:04:55.3]} 8. Be2 {[%clk
0:04:41.8]} 8... Nbd7 {[%clk 0:04:52.8]} 9. h3 {[%clk 0:04:35]} 9... Bh5 {[%clk
0:04:50.8]} 10. O-O {[%clk 0:04:32.5]} 10... Qb6 {[%clk 0:04:49.5]} 11. b3
{[%clk 0:04:02]} 11... Bxf3 {[%clk 0:04:44.7]} 12. Bxf3 {[%clk 0:04:01]} 12...
Qxd4 {[%clk 0:04:44.2]} 13. Qc2 {[%clk 0:03:56]} 13... Bb4 {[%clk 0:04:40.3]}
14. Rad1 {[%clk 0:03:52.9]} 14... Ne5 {[%clk 0:04:38.4]} 15. Rfe1 {[%clk
0:03:30.3]} 15... Nxf3+ {[%clk 0:04:36.7]} 16. gxf3 {[%clk 0:03:30.2]} 16... Qh4
{[%clk 0:04:30.3]} 17. Kg2 {[%clk 0:03:19]} 17... Bc5 {[%clk 0:04:22.2]} 18. Be3
{[%clk 0:03:07.9]} 18... Bxe3 {[%clk 0:04:20.3]} 19. fxe3 {[%clk 0:03:05.6]}
19... O-O {[%clk 0:04:16.2]} 20. Rd4 {[%clk 0:03:00.9]} 20... Qxe1 {[%clk
0:04:12.4]} 0-1

[Event "Live Chess"]
[Site "Chess.com"]
[Date "2023.05.20"]
[Round "-"]
[White "lightningorderyt"]
[Black "Tushinskiy"]
[Result "0-1"]
[WhiteElo "522"]
[BlackElo "2129"]
[TimeControl "300"]
[EndTime "13:56:51 PDT"]
[Termination "Tushinskiy won by checkmate"]

1. d4 {[%clk 0:04:59]} 1... e5 {[%clk 0:04:56.3]} 2. e3 {[%clk 0:04:54.5]} 2...
e4 {[%clk 0:04:54.1]} 3. Bc4 {[%clk 0:04:51.1]} 3... d5 {[%clk 0:04:53.1]} 4.
Bb3 {[%clk 0:04:45.9]} 4... c6 {[%clk 0:04:50.3]} 5. Nc3 {[%clk 0:04:44.1]} 5...
Nf6 {[%clk 0:04:44.4]} 6. f3 {[%clk 0:04:40.3]} 6... exf3 {[%clk 0:04:43.2]} 7.
Nxf3 {[%clk 0:04:38.8]} 7... Bd6 {[%clk 0:04:43.1]} 8. Bd2 {[%clk 0:04:30.9]}
8... O-O {[%clk 0:04:36.2]} 9. Qe2 {[%clk 0:04:25.6]} 9... Re8 {[%clk
0:04:26.8]} 10. O-O-O {[%clk 0:04:15.5]} 10... b5 {[%clk 0:04:24.8]} 11. a4
{[%clk 0:03:47.6]} 11... a6 {[%clk 0:04:18.5]} 12. axb5 {[%clk 0:03:36.1]} 12...
axb5 {[%clk 0:04:10.5]} 13. Kb1 {[%clk 0:03:33.7]} 13... Ra6 {[%clk 0:04:05.3]}
14. Rde1 {[%clk 0:03:22.6]} 14... Nbd7 {[%clk 0:04:02.3]} 15. e4 {[%clk
0:03:20.2]} 15... Nxe4 {[%clk 0:04:00.8]} 16. Nxe4 {[%clk 0:03:17.8]} 16... Rxe4
{[%clk 0:04:00.7]} 17. Qd3 {[%clk 0:03:06.8]} 17... Nf6 {[%clk 0:03:58.8]} 18.
Bg5 {[%clk 0:03:02.5]} 18... Bf5 {[%clk 0:03:54.8]} 19. Qc3 {[%clk 0:02:51.7]}
19... Be7 {[%clk 0:03:45.9]} 20. Bxf6 {[%clk 0:02:34]} 20... Bxf6 {[%clk
0:03:43.9]} 21. Rxe4 {[%clk 0:02:18.7]} 21... Bxe4 {[%clk 0:03:43.8]} 22. Re1
{[%clk 0:02:01.3]} 22... h6 {[%clk 0:03:37.4]} 23. Nd2 {[%clk 0:01:38.8]} 23...
Bg6 {[%clk 0:03:32.7]} 24. Qb4 {[%clk 0:01:24.6]} 24... Kh7 {[%clk 0:03:26.6]}
25. Kc1 {[%clk 0:01:05.4]} 25... Ra1+ {[%clk 0:03:21.6]} 26. Nb1 {[%clk
0:01:03.2]} 26... Bg5+ {[%clk 0:03:20.4]} 27. Kd1 {[%clk 0:00:52.4]} 27... Bh5+
{[%clk 0:03:15.6]} 28. Re2 {[%clk 0:00:46.9]} 28... Rxb1# {[%clk 0:03:11.8]} 0-1

[Event "Live Chess"]
[Site "Chess.com"]
[Date "2023.05.20"]
[Round "-"]
[White "Wild_Tiger"]
[Black "Bot_Boy"]
[Result "1-0"]
[WhiteElo "1072"]
[BlackElo "324"]
[TimeControl "300"]
[EndTime "13:56:53 PDT"]
[Termination "Wild_Tiger won on time"]

1. c4 {[%clk 0:04:56.4]} 1... d5 {[%clk 0:04:58.8]} 2. d4 {[%clk 0:04:54.1]}
2... Nf6 {[%clk 0:04:54.7]} 3. Nc3 {[%clk 0:04:51.2]} 3... e6 {[%clk 0:04:49.8]}
4. e3 {[%clk 0:04:48.3]} 4... Bb4 {[%clk 0:04:43.3]} 5. Bd2 {[%clk 0:04:45.4]}
5... Bxc3 {[%clk 0:04:36.9]} 6. Bxc3 {[%clk 0:04:43.1]} 6... Ne4 {[%clk
0:04:35.4]} 7. Ne2 {[%clk 0:04:30.1]} 7... g5 {[%clk 0:04:11.9]} 8. Ng3 {[%clk
0:04:22.1]} 8... Nxc3 {[%clk 0:03:55.8]} 9. bxc3 {[%clk 0:04:22]} 9... h5 {[%clk
0:03:45]} 10. cxd5 {[%clk 0:04:16.3]} 10... Qxd5 {[%clk 0:03:37.2]} 11. Nxh5
{[%clk 0:04:11.9]} 11... Rxh5 {[%clk 0:03:15.4]} 12. Qxh5 {[%clk 0:04:09.2]}
12... Nd7 {[%clk 0:03:09.3]} 13. Qh8+ {[%clk 0:03:50.4]} 13... Ke7 {[%clk
0:02:52.9]} 14. Be2 {[%clk 0:03:41.4]} 14... Nf6 {[%clk 0:02:40.7]} 15. O-O
{[%clk 0:03:36.4]} 15... Ne4 {[%clk 0:02:15.7]} 16. c4 {[%clk 0:03:30.1]} 16...
Qa5 {[%clk 0:01:21.1]} 17. Bd3 {[%clk 0:03:17.6]} 17... Nf6 {[%clk 0:00:37.5]}
18. d5 {[%clk 0:03:06.3]} 18... e5 {[%clk 0:00:31.6]} 19. Bf5 {[%clk 0:02:39.8]}
19... Bxf5 {[%clk 0:00:27.9]} 20. Qxa8 {[%clk 0:02:36.6]} 20... b6 {[%clk
0:00:12.9]} 21. Qc6 {[%clk 0:02:21.4]} 21... Bd7 {[%clk 0:00:02.2]} 22. Qxc7
{[%clk 0:02:17.1]} 1-0

[Event "Live Chess"]
[Site "Chess.com"]
[Date "2023.05.20"]
[Round "-"]
[White "SupremeTactician"]
[Black "lordjimvi"]
[Result "1-0"]
[WhiteElo "2378"]
[BlackElo "391"]
[TimeControl "300"]
[EndTime "13:57:00 PDT"]
[Termination "SupremeTactician won by resignation"]

1. e4 {[%clk 0:04:59.2]} 1... d5 {[%clk 0:04:59]} 2. exd5 {[%clk 0:04:58.1]}
2... Qxd5 {[%clk 0:04:57.7]} 3. Nc3 {[%clk 0:04:57.8]} 3... Qe6+ {[%clk
0:04:56.9]} 4. Be2 {[%clk 0:04:56.4]} 4... Nc6 {[%clk 0:04:54.7]} 5. d4 {[%clk
0:04:55.1]} 5... Nxd4 {[%clk 0:04:52.9]} 6. Qxd4 {[%clk 0:04:54]} 6... b6 {[%clk
0:04:49]} 7. Nf3 {[%clk 0:04:51.7]} 7... Bb7 {[%clk 0:04:47]} 8. O-O {[%clk
0:04:50.1]} 8... Rd8 {[%clk 0:04:46]} 9. Qf4 {[%clk 0:04:45]} 9... Nf6 {[%clk
0:04:32.1]} 10. Re1 {[%clk 0:04:43]} 10... Nd5 {[%clk 0:04:29.3]} 11. Nxd5
{[%clk 0:04:40.6]} 11... Rxd5 {[%clk 0:04:27.5]} 12. Bb5+ {[%clk 0:04:36]} 12...
c6 {[%clk 0:04:26]} 13. Rxe6 {[%clk 0:04:34.7]} 1-0

[Event "Live Chess"]
[Site "Chess.com"]
[Date "2023.05.20"]
[Round "-"]
[White "smoggyrabbit"]
[Black "GMHarry-youtube"]
[Result "1-0"]
[WhiteElo "1688"]
[BlackElo "2060"]
[TimeControl "300"]
[EndTime "13:57:17 PDT"]
[Termination "smoggyrabbit won by checkmate"]

1. d4 {[%clk 0:04:59.3]} 1... Nf6 {[%clk 0:04:58.9]} 2. Nf3 {[%clk 0:04:57.8]}
2... g6 {[%clk 0:04:58.2]} 3. e3 {[%clk 0:04:56.4]} 3... Bg7 {[%clk 0:04:57.3]}
4. Be2 {[%clk 0:04:54.4]} 4... O-O {[%clk 0:04:52.2]} 5. O-O {[%clk 0:04:53.2]}
5... d5 {[%clk 0:04:47.8]} 6. b3 {[%clk 0:04:50.8]} 6... a6 {[%clk 0:04:44.4]}
7. a4 {[%clk 0:04:46.4]} 7... c6 {[%clk 0:04:43.1]} 8. Bb2 {[%clk 0:04:42.8]}
8... Nbd7 {[%clk 0:04:39.8]} 9. Nbd2 {[%clk 0:04:40.2]} 9... Ne4 {[%clk
0:04:33.2]} 10. c4 {[%clk 0:04:22.2]} 10... e6 {[%clk 0:04:29.4]} 11. cxd5
{[%clk 0:04:03.6]} 11... cxd5 {[%clk 0:04:26.8]} 12. Qc2 {[%clk 0:03:44.3]}
12... f5 {[%clk 0:04:23.3]} 13. Nxe4 {[%clk 0:03:39.6]} 13... fxe4 {[%clk
0:04:22.2]} 14. Nd2 {[%clk 0:03:37.4]} 14... Qg5 {[%clk 0:04:06.3]} 15. Qc7
{[%clk 0:02:38.5]} 15... Nf6 {[%clk 0:03:53.9]} 16. Rac1 {[%clk 0:02:23.8]}
16... Nh5 {[%clk 0:03:42.6]} 17. Qd6 {[%clk 0:01:00.1]} 17... Rd8 {[%clk
0:03:32.9]} 18. Qb6 {[%clk 0:00:57.3]} 18... Bf8 {[%clk 0:03:27.3]} 19. Bxh5
{[%clk 0:00:53.9]} 19... gxh5 {[%clk 0:03:24.8]} 20. Rc7 {[%clk 0:00:48.3]}
20... Bd6 {[%clk 0:03:18.6]} 21. Rc2 {[%clk 0:00:43.3]} 21... Qh4 {[%clk
0:03:06.6]} 22. g3 {[%clk 0:00:32.9]} 22... Qg5 {[%clk 0:03:03.6]} 23. Rfc1
{[%clk 0:00:27.4]} 23... h4 {[%clk 0:02:59.3]} 24. Rxc8 {[%clk 0:00:18.3]} 24...
Raxc8 {[%clk 0:02:54.6]} 25. Rxc8 {[%clk 0:00:17.3]} 25... Rxc8 {[%clk
0:02:53.2]} 26. Qxd6 {[%clk 0:00:16.3]} 26... Rc6 {[%clk 0:02:50.3]} 27. Qb8+
{[%clk 0:00:14.4]} 27... Kf7 {[%clk 0:02:36.6]} 28. Ba3 {[%clk 0:00:13.3]} 28...
Rc2 {[%clk 0:02:25.8]} 29. Qf8+ {[%clk 0:00:12]} 29... Kg6 {[%clk 0:02:24.3]}
30. Qe8+ {[%clk 0:00:10.9]} 30... Kf5 {[%clk 0:02:17.3]} 31. Qf7+ {[%clk
0:00:09.5]} 31... Qf6 {[%clk 0:02:09.6]} 32. g4+ {[%clk 0:00:08.7]} 32... Kg5
{[%clk 0:02:01.7]} 33. Qh5# {[%clk 0:00:07.3]} 1-0

[Event "Live Chess"]
[Site "Chess.com"]
[Date "2023.05.20"]
[Round "-"]
[White "friarnator"]
[Black "KeithArkell"]
[Result "0-1"]
[WhiteElo "1990"]
[BlackElo "2615"]
[TimeControl "300"]
[EndTime "13:57:17 PDT"]
[Termination "KeithArkell won by resignation"]

1. e4 {[%clk 0:04:55.5]} 1... c6 {[%clk 0:04:58.7]} 2. d4 {[%clk 0:04:54.8]}
2... d5 {[%clk 0:04:57.8]} 3. Nc3 {[%clk 0:04:54.4]} 3... dxe4 {[%clk
0:04:56.9]} 4. Nxe4 {[%clk 0:04:54.3]} 4... Nd7 {[%clk 0:04:56.4]} 5. Nf3 {[%clk
0:04:52.2]} 5... Ngf6 {[%clk 0:04:55.2]} 6. Neg5 {[%clk 0:04:49.5]} 6... h6
{[%clk 0:04:51.7]} 7. Nh3 {[%clk 0:04:41.2]} 7... g5 {[%clk 0:04:49.7]} 8. Nhg1
{[%clk 0:04:17.2]} 8... c5 {[%clk 0:04:41.8]} 9. c3 {[%clk 0:04:12.2]} 9... cxd4
{[%clk 0:04:40.9]} 10. Nxd4 {[%clk 0:04:10.6]} 10... e6 {[%clk 0:04:38.1]} 11.
h4 {[%clk 0:04:03]} 11... g4 {[%clk 0:04:36.5]} 12. Bc4 {[%clk 0:03:56.5]} 12...
Nb6 {[%clk 0:04:33.7]} 13. Bb3 {[%clk 0:03:54.2]} 13... Bc5 {[%clk 0:04:29.9]}
14. Nge2 {[%clk 0:03:53.1]} 14... Bd7 {[%clk 0:04:28.4]} 15. Ng3 {[%clk
0:03:42.2]} 15... Bc6 {[%clk 0:04:26.4]} 16. Nxc6 {[%clk 0:03:35.9]} 16... Qxd1+
{[%clk 0:04:26.3]} 17. Bxd1 {[%clk 0:03:35.3]} 17... bxc6 {[%clk 0:04:25.7]} 18.
a4 {[%clk 0:03:27.9]} 18... h5 {[%clk 0:04:24]} 19. a5 {[%clk 0:03:26.2]} 19...
Nbd7 {[%clk 0:04:22.6]} 20. b4 {[%clk 0:03:20.9]} 20... Be7 {[%clk 0:04:21]} 21.
Ba4 {[%clk 0:03:18.7]} 21... Rc8 {[%clk 0:04:19.8]} 22. Be3 {[%clk 0:03:16.3]}
22... a6 {[%clk 0:04:17.5]} 23. O-O-O {[%clk 0:03:06.6]} 23... Nd5 {[%clk
0:04:16.6]} 24. Bd4 {[%clk 0:03:00.3]} 24... Bf6 {[%clk 0:04:05.3]} 25. Kc2
{[%clk 0:02:52.5]} 25... Bxd4 {[%clk 0:03:54]} 26. Rxd4 {[%clk 0:02:52.4]} 26...
Ke7 {[%clk 0:03:49.4]} 27. Re1 {[%clk 0:02:38.1]} 27... N7f6 {[%clk 0:03:39.9]}
28. Nf5+ {[%clk 0:02:20.7]} 28... Kf8 {[%clk 0:03:37.8]} 29. Nd6 {[%clk
0:02:17]} 29... Rc7 {[%clk 0:03:36.9]} 30. Kb3 {[%clk 0:02:09.8]} 30... c5
{[%clk 0:03:36.1]} 31. Rd3 {[%clk 0:01:39]} 31... Kg7 {[%clk 0:02:56.4]} 32. b5
{[%clk 0:01:36.5]} 32... axb5 {[%clk 0:02:53]} 33. Bxb5 {[%clk 0:01:34.2]} 33...
Rd8 {[%clk 0:02:51.5]} 34. Nc4 {[%clk 0:00:53.8]} 34... Rb8 {[%clk 0:02:44.8]}
35. Na3 {[%clk 0:00:53]} 35... c4+ {[%clk 0:02:39.5]} 36. Nxc4 {[%clk
0:00:35.6]} 36... Rxb5+ {[%clk 0:02:37.3]} 37. Ka4 {[%clk 0:00:35]} 37... Rbc5
{[%clk 0:02:34.5]} 0-1

[Event "Live Chess"]
[Site "Chess.com"]
[Date "2023.05.20"]
[Round "-"]
[White "WilliamofOrange16th"]
[Black "JohanKjeldahl"]
[Result "0-1"]
[WhiteElo "1833"]
[BlackElo "1848"]
[TimeControl "300"]
[EndTime "13:57:22 PDT"]
[Termination "JohanKjeldahl won by resignation"]

1. e4 {[%clk 0:04:56.8]} 1... c5 {[%clk 0:04:58]} 2. Nc3 {[%clk 0:04:53.4]} 2...
e6 {[%clk 0:04:56.7]} 3. Bc4 {[%clk 0:04:51.6]} 3... Nc6 {[%clk 0:04:54.8]} 4.
f4 {[%clk 0:04:48.9]} 4... a6 {[%clk 0:04:53.7]} 5. a4 {[%clk 0:04:47.4]} 5...
Qc7 {[%clk 0:04:52.2]} 6. d3 {[%clk 0:04:45.6]} 6... b6 {[%clk 0:04:51.4]} 7.
Nf3 {[%clk 0:04:44.6]} 7... Bb7 {[%clk 0:04:50.9]} 8. O-O {[%clk 0:04:43.8]}
8... Nge7 {[%clk 0:04:48.5]} 9. Qe1 {[%clk 0:04:38.4]} 9... g6 {[%clk 0:04:47]}
10. Be3 {[%clk 0:04:15.1]} 10... Bg7 {[%clk 0:04:44.8]} 11. e5 {[%clk
0:04:06.2]} 11... O-O {[%clk 0:04:39.6]} 12. g4 {[%clk 0:04:04.8]} 12... d5
{[%clk 0:04:35.3]} 13. exd6 {[%clk 0:04:02]} 13... Qxd6 {[%clk 0:04:34.4]} 14.
Ne4 {[%clk 0:03:52.6]} 14... Qc7 {[%clk 0:04:32.5]} 15. c3 {[%clk 0:03:48.1]}
15... Nd5 {[%clk 0:04:27.3]} 16. Bxd5 {[%clk 0:03:41]} 16... exd5 {[%clk
0:04:25.6]} 17. Neg5 {[%clk 0:03:39.2]} 17... h6 {[%clk 0:04:12.8]} 18. Nh3
{[%clk 0:03:35]} 18... Rae8 {[%clk 0:04:06.8]} 19. Qf2 {[%clk 0:03:33.3]} 19...
Qd7 {[%clk 0:03:54.9]} 20. Kh1 {[%clk 0:02:52.3]} 20... d4 {[%clk 0:03:50.2]}
21. Bd2 {[%clk 0:02:50.4]} 21... dxc3 {[%clk 0:03:43.6]} 22. bxc3 {[%clk
0:02:50.3]} 22... Qxg4 {[%clk 0:03:39.8]} 23. Qg2 {[%clk 0:02:40.1]} 23... Qxg2+
{[%clk 0:03:37.6]} 24. Kxg2 {[%clk 0:02:40]} 24... Re2+ {[%clk 0:03:29.7]} 25.
Rf2 {[%clk 0:02:39.5]} 25... Rfe8 {[%clk 0:03:24.9]} 26. Rb1 {[%clk 0:02:34.6]}
26... Na5 {[%clk 0:03:16.2]} 27. Rxb6 {[%clk 0:02:29]} 27... Bxf3+ {[%clk
0:03:04.5]} 28. Kxf3 {[%clk 0:02:27.6]} 28... Rxf2+ {[%clk 0:02:56.7]} 29. Kxf2
{[%clk 0:02:26.8]} 29... Re6 {[%clk 0:02:50.8]} 30. Rb8+ {[%clk 0:02:18.6]}
30... Kh7 {[%clk 0:02:49.2]} 31. c4 {[%clk 0:02:12.3]} 31... Nc6 {[%clk
0:02:46.3]} 32. Rc8 {[%clk 0:02:02.3]} 32... Nd4 {[%clk 0:02:42.8]} 33. Ng1
{[%clk 0:01:54.2]} 33... Nb3 {[%clk 0:02:34.8]} 34. Be3 {[%clk 0:01:48.9]} 34...
Bd4 {[%clk 0:02:29.2]} 35. Bxd4 {[%clk 0:01:47.4]} 35... cxd4 {[%clk 0:02:28.2]}
36. Nf3 {[%clk 0:01:18.6]} 36... Nc1 {[%clk 0:02:24.6]} 37. Ne5 {[%clk
0:01:16.4]} 37... Kg7 {[%clk 0:02:18]} 38. Rc7 {[%clk 0:01:14.5]} 38... Rf6
{[%clk 0:02:13.8]} 39. Kg3 {[%clk 0:01:13.4]} 39... Ne2+ {[%clk 0:02:05.7]} 40.
Kg2 {[%clk 0:00:58.8]} 40... Nxf4+ {[%clk 0:02:04]} 41. Kg3 {[%clk 0:00:57.8]}
41... Ne6 {[%clk 0:01:59.7]} 42. Ra7 {[%clk 0:00:53.9]} 42... Nc5 {[%clk
0:01:54.6]} 43. a5 {[%clk 0:00:48.8]} 43... h5 {[%clk 0:01:50.3]} 44. h4 {[%clk
0:00:47]} 44... Rf5 {[%clk 0:01:46.9]} 45. Nc6 {[%clk 0:00:42.1]} 45... Nxd3
{[%clk 0:01:43.5]} 46. Nxd4 {[%clk 0:00:40.6]} 46... Rxa5 {[%clk 0:01:38.6]} 47.
Ne6+ {[%clk 0:00:30.2]} 47... Kf6 {[%clk 0:01:36.9]} 48. Nc7 {[%clk 0:00:25.5]}
48... Nc5 {[%clk 0:01:28.4]} 49. Kf4 {[%clk 0:00:21.9]} 49... Ne6+ {[%clk
0:01:23.7]} 50. Nxe6 {[%clk 0:00:20.2]} 50... Kxe6 {[%clk 0:01:22.8]} 51. Ke4
{[%clk 0:00:19.5]} 51... Ra4 {[%clk 0:01:21.1]} 52. Kd4 {[%clk 0:00:18.6]} 52...
f5 {[%clk 0:01:17.7]} 53. Kc3 {[%clk 0:00:17.7]} 53... f4 {[%clk 0:01:16.2]} 54.
c5 {[%clk 0:00:17.1]} 54... Kd5 {[%clk 0:01:13.9]} 55. Rg7 {[%clk 0:00:14.5]}
55... Kxc5 {[%clk 0:01:11.3]} 56. Rxg6 {[%clk 0:00:14]} 56... Ra3+ {[%clk
0:01:10.5]} 57. Kc2 {[%clk 0:00:12.1]} 57... f3 {[%clk 0:01:08.7]} 58. Rf6
{[%clk 0:00:11.5]} 58... Kc4 {[%clk 0:01:06.2]} 59. Rf4+ {[%clk 0:00:10.7]}
59... Kd5 {[%clk 0:01:02.7]} 60. Rf5+ {[%clk 0:00:10.2]} 60... Ke4 {[%clk
0:01:01.8]} 61. Rxh5 {[%clk 0:00:09.4]} 61... f2 {[%clk 0:01:00.2]} 0-1